bitfinex/quotes_BTCUSD_20240613
["timestamp","ask_amount","ask_price","bid_price","bid_amount"]
[1718303098432,0.00616362,66904.0,66903.0,0.8475954]
[1718303098637,0.00764629,66904.0,66903.0,0.8475954]
[1718303098842,0.00616362,66904.0,66903.0,0.8475954]
[1718303100704,0.00616362,66904.0,66903.0,1.1465354]
[1718303100930,0.00616362,66904.0,66903.0,1.15505273]
[1718303101138,0.00616362,66904.0,66903.0,1.47230701]
[1718303101583,0.00616362,66904.0,66903.0,1.60636407]
[1718303101793,0.00616362,66904.0,66903.0,1.60638407]
[1718303102113,0.00616362,66904.0,66903.0,1.47230701]
[1718303102646,0.00616362,66904.0,66903.0,1.60643404]
[1718303103729,0.00616362,66904.0,66903.0,3.34949701]
[1718303103946,0.00616362,66904.0,66903.0,3.65696369]
[1718303104167,0.00616362,66904.0,66903.0,2.37934969]
[1718303104342,0.00616362,66904.0,66903.0,1.89111219]
[1718303104544,0.00616362,66904.0,66903.0,1.29073086]
[1718303104749,0.00616362,66904.0,66903.0,1.00005796]
[1718303105050,0.00616362,66904.0,66903.0,1.29899796]
[1718303105249,0.00616362,66904.0,66903.0,1.16736701]
[1718303105442,0.00616362,66904.0,66903.0,1.17936701]
[1718303105646,0.00616362,66904.0,66903.0,1.17036701]
[1718303105850,0.00616362,66904.0,66903.0,1.31351529]
[1718303106032,0.00616362,66904.0,66903.0,1.31187281]
[1718303106461,0.00616362,66904.0,66903.0,1.30287281]
[1718303106856,0.00616362,66904.0,66903.0,1.78586181]
[1718303107067,0.00616362,66904.0,66903.0,1.64070809]
[1718303109059,0.00616362,66904.0,66903.0,1.16916576]
[1718303109482,0.00616362,66904.0,66903.0,0.87022576]
[1718303109680,0.25014629,66904.0,66903.0,0.97022576]
[1718303109894,0.24866362,66904.0,66903.0,0.97022576]
[1718303110493,0.24866362,66904.0,66903.0,0.95191148]
[1718303111122,0.25014629,66904.0,66903.0,0.60244148]
[1718303111346,0.25014629,66904.0,66903.0,0.39251777]
[1718303111580,0.25014629,66904.0,66903.0,0.85193287]
[1718303111759,0.24866362,66904.0,66903.0,0.85193287]
[1718303111966,0.25014629,66904.0,66903.0,0.85193287]
[1718303112162,0.25014629,66904.0,66903.0,0.84293287]
[1718303112522,0.25014629,66904.0,66903.0,0.83993287]
[1718303112617,0.25014629,66904.0,66903.0,0.84893287]
[1718303113284,0.25014629,66904.0,66903.0,0.53898777]
[1718303113533,0.25014629,66904.0,66903.0,0.84892937]
[1718303113759,0.32094629,66904.0,66903.0,0.66678274]
[1718303113988,0.32094629,66904.0,66903.0,0.55487312]
[1718303114218,0.32094629,66904.0,66903.0,0.79388703]
[1718303114655,0.32094629,66904.0,66903.0,0.55487312]
[1718303114876,0.32094629,66904.0,66903.0,0.70434312]
[1718303114877,0.25014629,66904.0,66903.0,0.70434312]
[1718303115103,0.00616362,66904.0,66903.0,1.14788524]
[1718303115557,0.00588143,66904.0,66903.0,1.44682524]
[1718303115793,0.00588143,66904.0,66903.0,1.85927757]
[1718303116020,0.00588143,66904.0,66903.0,1.14788524]
[1718303116513,0.00588143,66904.0,66903.0,0.84894524]
[1718303116729,0.0073641,66904.0,66903.0,0.84894524]
[1718303116948,0.00588143,66904.0,66903.0,1.14788524]
[1718303117767,0.00588143,66904.0,66903.0,1.20011836]
[1718303118386,0.00588143,66904.0,66903.0,1.20009533]
[1718303118603,0.00588143,66904.0,66903.0,1.14786221]
[1718303118830,0.00588143,66904.0,66903.0,1.2000967]
[1718303119646,0.00588143,66904.0,66903.0,1.20010041]
[1718303120573,0.00588143,66904.0,66903.0,1.20861774]
[1718303120774,0.00588143,66904.0,66903.0,1.20862356]
[1718303121678,0.00588143,66904.0,66903.0,1.50756356]
[1718303121880,0.00588143,66904.0,66903.0,2.40355256]
[1718303122099,0.00588143,66904.0,66903.0,2.71392722]
[1718303122948,0.00588143,66904.0,66903.0,2.40598722]
[1718303123149,0.00588143,66904.0,66903.0,2.39698722]
[1718303123358,0.00588143,66904.0,66903.0,2.40917896]
[1718303123555,0.00588143,66904.0,66903.0,2.41817896]
[1718303123755,0.00588143,66904.0,66903.0,2.41814782]
[1718303125436,0.00588143,66904.0,66903.0,2.29565768]
[1718303125695,0.00588143,66904.0,66903.0,2.56720876]
[1718303126353,0.00588143,66904.0,66903.0,2.54883406]
[1718303126983,0.00588143,66904.0,66903.0,2.23892705]
[1718303127402,0.00588143,66904.0,66903.0,2.54883406]
[1718303127841,0.00588143,66904.0,66903.0,2.56741769]
[1718303128759,0.00588143,66904.0,66903.0,2.56751902]
[1718303130939,0.00588143,66904.0,66903.0,2.59051902]
[1718303131147,0.00588143,66904.0,66903.0,2.59050517]
[1718303131391,0.00588143,66904.0,66903.0,2.61385781]
[1718303132990,0.00588143,66904.0,66903.0,3.11809781]
[1718303133201,0.00588143,66904.0,66903.0,3.58295833]
[1718303134126,0.00588143,66904.0,66903.0,3.68295833]
[1718303134265,0.00588143,66904.0,66903.0,3.58295833]
[1718303135508,0.00559924,66904.0,66903.0,3.53295833]
[1718303136247,0.00559924,66904.0,66903.0,3.58295833]
[1718303136809,0.00559924,66904.0,66903.0,3.68295833]
[1718303137012,0.00559924,66904.0,66903.0,3.58295833]
[1718303137914,0.00559924,66904.0,66903.0,3.78112539]
[1718303138268,0.00559924,66904.0,66903.0,3.88112539]
[1718303138485,0.00559924,66904.0,66903.0,3.16289587]
[1718303138696,0.00559924,66904.0,66903.0,3.86010805]
[1718303139807,0.00559924,66904.0,66903.0,3.76010805]
[1718303139960,0.00559924,66904.0,66903.0,3.77781182]
[1718303140161,0.00559924,66904.0,66903.0,3.84861182]
[1718303140364,0.00559924,66904.0,66903.0,3.65049726]
[1718303140775,0.00559924,66904.0,66903.0,2.82715726]
[1718303141266,0.00559924,66904.0,66903.0,2.33042677]
[1718303141464,0.00559924,66904.0,66903.0,2.3389441]
[1718303142336,0.00559924,66904.0,66903.0,2.33977735]
[1718303143525,0.00559924,66904.0,66903.0,2.63871735]
[1718303143731,0.00559924,66904.0,66903.0,2.33977735]
[1718303147125,0.00559924,66904.0,66903.0,2.46193731]
[1718303147497,0.00559924,66904.0,66903.0,2.68871735]
[1718303147704,0.00559924,66904.0,66903.0,2.38977735]
[1718303147923,0.00559924,66904.0,66903.0,2.33977735]
[1718303148481,0.00559924,66904.0,66903.0,2.38977735]
[1718303149128,0.00559924,66904.0,66903.0,2.68871735]
[1718303149353,0.00559924,66904.0,66903.0,2.33977735]
[1718303149575,0.00559924,66904.0,66903.0,2.80463787]
[1718303149799,0.00559924,66904.0,66903.0,2.33977735]
[1718303150418,0.00541935,66904.0,66903.0,2.33977735]
[1718303152194,0.00541935,66904.0,66903.0,2.31355625]
[1718303152401,0.00541935,66904.0,66903.0,2.42796577]
[1718303152616,0.00541935,66904.0,66903.0,2.12462125]
[1718303153040,0.00541935,66904.0,66903.0,1.80011838]
[1718303153413,0.00541935,66904.0,66903.0,1.81884513]
[1718303155130,0.00541935,66904.0,66903.0,1.42269113]
[1718303155521,0.00513716,66904.0,66903.0,1.42269113]
[1718303155719,0.00513716,66904.0,66903.0,1.72163113]
[1718303156587,0.00513716,66904.0,66903.0,1.42269113]
[1718303159605,0.13483716,66904.0,66903.0,1.42269113]
[1718303161209,0.00513716,66904.0,66903.0,2.13548846]
[1718303161461,0.00513716,66904.0,66903.0,1.83655434]
[1718303161888,0.00513716,66904.0,66903.0,2.31940811]
[1718303162017,0.00513716,66904.0,66903.0,2.4412349]
[1718303162218,0.00513716,66904.0,66903.0,2.4675121]
[1718303162436,0.00513716,66904.0,66903.0,2.63933906]
[1718303162641,0.00513716,66904.0,66903.0,2.28402752]
[1718303163449,0.00513716,66904.0,66903.0,1.46903585]
[1718303163653,0.25543716,66904.0,66903.0,1.46904882]
[1718303164046,0.25543716,66904.0,66903.0,1.14711188]
[1718303164261,0.25691983,66904.0,66903.0,0.75527917]
[1718303164464,0.25691983,66904.0,66903.0,0.88957791]
[1718303164692,0.25691983,66904.0,66903.0,0.75527917]
[1718303164902,0.25691983,66904.0,66903.0,0.61095924]
[1718303165256,0.25691983,66904.0,66903.0,0.72290197]
[1718303165687,0.25691983,66904.0,66903.0,0.61095924]
[1718303166083,0.40638683,66904.0,66903.0,0.60050146]
[1718303166304,0.25691983,66904.0,66903.0,0.51101165]
[1718303166511,0.25691983,66904.0,66903.0,0.26818849]
[1718303167065,0.25691983,66904.0,66903.0,0.24718849]
[1718303167268,0.25691983,66904.0,66903.0,0.22480058]
[1718303167498,0.26691983,66904.0,66903.0,0.23680058]
[1718303167782,0.41638683,66904.0,66903.0,0.01661725]
[1718303168783,0.41638683,66904.0,66903.0,0.01285]
[1718303169569,0.41638683,66904.0,66903.0,0.00385]
[1718303169953,0.41638683,66904.0,66901.0,0.00085]
[1718303169954,0.39055467,66902.0,66901.0,0.00085]
[1718303170135,0.47385467,66902.0,66901.0,0.00085]
[1718303171170,0.47685467,66902.0,66901.0,0.00185]
[1718303171370,0.32738267,66902.0,66901.0,0.00185]
[1718303173298,0.47685467,66902.0,66901.0,0.00185]
[1718303175573,0.47657248,66902.0,66901.0,0.00185]
[1718303176113,0.77551648,66902.0,66901.0,0.00185]
[1718303176314,0.87551648,66902.0,66901.0,0.00185]
[1718303177198,0.77551648,66902.0,66901.0,0.00185]
[1718303177835,0.87551648,66902.0,66901.0,0.00185]
[1718303181690,1.31878041,66902.0,66901.0,0.00185]
[1718303181903,1.33712604,66902.0,66880.0,0.1]
[1718303182107,0.00120048,66879.0,66878.0,0.2]
[1718303182552,0.00120048,66879.0,66878.0,0.3]
[1718303183443,0.16072348,66879.0,66878.0,0.1]
[1718303183709,0.16072348,66879.0,66872.0,0.18]
[1718303183710,0.00120048,66873.0,66872.0,0.18]
[1718303183923,0.07200048,66873.0,66872.0,0.18]
[1718303184135,0.00120048,66873.0,66872.0,0.18]
[1718303184361,0.07200048,66873.0,66872.0,0.18]
[1718303184570,0.07200048,66873.0,66872.0,0.30248117]
[1718303185293,0.00120048,66873.0,66872.0,0.30276336]
[1718303185499,0.00120048,66878.0,66874.0,0.00028219]
[1718303185725,0.00120048,66878.0,66877.0,0.00028219]
[1718303185945,0.07200048,66878.0,66877.0,0.00028219]
[1718303186156,0.00120048,66878.0,66877.0,0.41672787]
[1718303186367,0.07200048,66878.0,66877.0,0.51672787]
[1718303187055,0.00120048,66878.0,66877.0,0.51672787]
[1718303187279,0.1871,66888.0,66877.0,0.51672787]
[1718303187280,0.00120048,66879.0,66877.0,0.52472787]
[1718303187550,0.00120048,66879.0,66878.0,0.52270627]
[1718303187993,0.00120048,66879.0,66878.0,0.52242408]
[1718303188709,0.00220048,66879.0,66878.0,0.52242408]
[1718303188930,0.00120048,66879.0,66878.0,0.52242408]
[1718303189114,0.00220048,66879.0,66878.0,0.52242408]
[1718303190052,0.00220048,66879.0,66878.0,0.51644368]
[1718303190270,0.00220048,66879.0,66878.0,0.52644368]
[1718303191417,0.00220048,66879.0,66878.0,0.37691768]
[1718303192081,0.00220048,66879.0,66878.0,0.52644368]
[1718303192961,0.00220048,66879.0,66878.0,0.52672587]
[1718303193127,0.00220048,66879.0,66878.0,0.52644368]
[1718303193330,0.00220048,66879.0,66878.0,0.83651882]
[1718303194916,0.00220048,66879.0,66878.0,0.83680101]
[1718303195122,0.00220048,66879.0,66878.0,0.83651882]
[1718303196120,0.00220048,66879.0,66878.0,0.68997248]
[1718303196502,0.00220048,66879.0,66878.0,0.69083248]
[1718303196699,0.23910048,66879.0,66878.0,0.69083248]
[1718303197739,0.13250048,66879.0,66878.0,0.69111467]
[1718303197952,0.00220048,66879.0,66878.0,0.84180209]
[1718303199817,0.00191257,66879.0,66878.0,0.84180209]
[1718303205760,0.00191257,66879.0,66878.0,0.84105176]
[1718303206981,0.07271257,66879.0,66878.0,0.84105176]
[1718303207626,0.07271257,66879.0,66878.0,0.69673183]
[1718303208053,0.07271257,66879.0,66878.0,0.69648793]
[1718303208320,0.07271257,66879.0,66878.0,0.54696193]
[1718303209076,0.21561257,66879.0,66878.0,0.54696193]
[1718303209575,0.21561257,66879.0,66878.0,0.54771708]
[1718303210190,0.32021257,66879.0,66878.0,0.54771708]
[1718303211346,0.33021257,66879.0,66878.0,0.54771708]
[1718303211985,0.32021257,66879.0,66878.0,0.54771708]
[1718303212164,0.47973557,66879.0,66878.0,0.54771708]
[1718303212822,0.47973557,66879.0,66878.0,0.23764194]
[1718303213028,0.32021257,66879.0,66878.0,0.23750168]
[1718303213196,0.32021257,66879.0,66878.0,0.54760087]
[1718303213782,0.33021257,66879.0,66878.0,0.54760087]
[1718303214391,0.47973557,66879.0,66878.0,0.54760087]
[1718303214805,0.33021257,66879.0,66878.0,0.54760087]
[1718303215019,0.47973557,66879.0,66878.0,0.44760087]
[1718303215207,0.47973557,66879.0,66878.0,0.01383966]
[1718303215438,0.33021257,66879.0,66878.0,0.01383966]
[1718303215573,0.47973557,66879.0,66878.0,0.01086]
[1718303215767,0.47973557,66879.0,66878.0,0.01387399]
[1718303215970,0.47973557,66879.0,66878.0,0.01086]
[1718303215971,0.33021257,66879.0,66878.0,0.01086]
[1718303216359,0.47973557,66879.0,66878.0,0.01086]
[1718303217008,0.47973557,66879.0,66878.0,0.01387399]
[1718303217516,0.47973557,66879.0,66878.0,0.01086]
[1718303217915,0.33021257,66879.0,66878.0,0.01086]
[1718303218123,0.47973557,66879.0,66878.0,0.01086]
[1718303219272,0.33021257,66879.0,66878.0,0.01086]
[1718303220089,0.32992466,66879.0,66878.0,0.01086]
[1718303220492,0.47944766,66879.0,66878.0,0.01086]
[1718303222693,0.57944766,66879.0,66878.0,0.01086]
[1718303223300,0.47944766,66879.0,66878.0,0.01086]
[1718303226235,0.57944766,66879.0,66878.0,0.01086]
[1718303226442,0.4976304,66879.0,66878.0,0.01086]
[1718303227563,0.0906074,66879.0,66878.0,0.01086]
[1718303227774,0.0906074,66879.0,66878.0,0.26966819]
[1718303227775,0.001,66879.0,66878.0,0.26966819]
[1718303227970,0.001,66879.0,66878.0,0.39676485]
[1718303227971,0.00162466,66879.0,66878.0,0.39676485]
[1718303228172,0.00162466,66879.0,66878.0,0.89633541]
[1718303228377,0.00162466,66879.0,66878.0,0.80685232]
[1718303228587,0.00162466,66879.0,66878.0,0.74680941]
[1718303229018,0.00162466,66879.0,66878.0,0.65732632]
[1718303229457,0.00257066,66879.0,66878.0,0.72440415]
[1718303229662,0.39449366,66879.0,66878.0,0.44804413]
[1718303229872,0.39449366,66879.0,66878.0,0.01390562]
[1718303230101,0.24497066,66879.0,66878.0,0.01390562]
[1718303230317,0.24497066,66879.0,66878.0,0.01086]
[1718303230537,0.24497066,66879.0,66878.0,0.01388312]
[1718303230752,0.39449366,66879.0,66878.0,0.01388312]
[1718303232350,0.39449366,66879.0,66878.0,0.01086]
[1718303235610,0.39421147,66879.0,66878.0,0.01086]
[1718303241491,0.41237056,66879.0,66878.0,0.01086]
[1718303243207,0.4121906,66879.0,66878.0,0.01086]
[1718303248716,0.4829906,66879.0,66878.0,0.01086]
[1718303249995,1.08054675,66879.0,66878.0,0.01086]
[1718303250194,1.08054675,66879.0,66878.0,0.00086]
[1718303250195,0.41165275,66879.0,66878.0,0.00086]
[1718303250412,1.18454675,66879.0,66878.0,0.00086]
[1718303250678,1.18454675,66879.0,66857.0,0.17170639]
[1718303250679,0.15019466,66858.0,66857.0,0.059809]
[1718303250875,0.15019466,66858.0,66856.0,0.62495895]
[1718303250876,0.15019666,66857.0,66856.0,0.1074]
[1718303251012,0.15019666,66857.0,66856.0,0.56191064]
[1718303251639,0.00062466,66857.0,66856.0,0.56191064]
[1718303252067,0.00062466,66857.0,66856.0,0.66191064]
[1718303253259,0.07142466,66857.0,66856.0,0.66191064]
[1718303253670,0.00062466,66857.0,66856.0,0.66191064]
[1718303254036,0.00062466,66857.0,66856.0,0.66491064]
[1718303254037,0.07142466,66857.0,66856.0,0.66491064]
[1718303255093,0.07142466,66857.0,66856.0,0.36371993]
[1718303255323,0.07142466,66857.0,66856.0,0.36071993]
[1718303255534,0.07142466,66857.0,66856.0,0.35171993]
[1718303255752,0.07242466,66857.0,66856.0,0.25031993]
[1718303255968,0.22099666,66857.0,66856.0,0.11]
[1718303256186,0.45979666,66857.0,66856.0,0.01285863]
[1718303256392,0.45979666,66857.0,66856.0,0.015]
[1718303256609,0.76894166,66857.0,66856.0,0.01285863]
[1718303256805,0.76894166,66857.0,66856.0,0.01]
[1718303257006,0.76894166,66857.0,66856.0,0.015]
[1718303258054,0.76894166,66857.0,66856.0,0.005]
[1718303258473,0.76894166,66857.0,66856.0,0.01]
[1718303258675,0.77194166,66857.0,66856.0,0.01]
[1718303258881,0.77194166,66857.0,66847.0,0.1]
[1718303258882,0.00062466,66848.0,66847.0,0.1]
[1718303259101,0.07142466,66848.0,66847.0,0.24723953]
[1718303259736,0.07113662,66848.0,66847.0,0.24723953]
[1718303260386,0.07213662,66848.0,66847.0,0.25623953]
[1718303261216,0.00133662,66848.0,66847.0,0.25623953]
[1718303261443,0.07213662,66848.0,66847.0,0.26623953]
[1718303261641,0.07213662,66848.0,66847.0,0.26709953]
[1718303263086,0.22172962,66848.0,66847.0,0.1227796]
[1718303263502,0.35402962,66848.0,66847.0,0.1227796]
[1718303264104,0.22172962,66848.0,66847.0,0.1227796]
[1718303266702,0.23172962,66848.0,66847.0,0.1227796]
[1718303266943,0.23172962,66848.0,66847.0,0.0227796]
[1718303270170,0.83010162,66848.0,66847.0,0.0227796]
[1718303270425,0.20453662,66848.0,66847.0,0.01986]
[1718303270628,0.001,66848.0,66847.0,0.28373719]
[1718303270847,0.001,66848.0,66847.0,0.22094219]
[1718303271055,0.00133662,66848.0,66847.0,0.22377831]
[1718303271263,0.001,66848.0,66847.0,0.21377831]
[1718303271471,0.00033662,66848.0,66847.0,0.20477831]
[1718303271682,0.00033662,66848.0,66847.0,0.21477831]
[1718303271896,0.00133662,66848.0,66847.0,0.22177831]
[1718303272138,0.00033662,66848.0,66847.0,0.35437331]
[1718303272790,0.11158301,66888.0,66847.0,0.35437331]
[1718303272791,0.00033662,66855.0,66854.0,0.00028219]
[1718303273021,0.00033662,66855.0,66854.0,0.20498219]
[1718303273221,0.00033662,66855.0,66854.0,0.35739731]
[1718303273375,0.00033662,66855.0,66854.0,0.20781831]
[1718303274382,0.00033662,66855.0,66854.0,0.20881831]
[1718303275000,0.00633662,66855.0,66854.0,0.20981831]
[1718303275441,0.00633662,66855.0,66854.0,0.42143969]
[1718303275442,0.006,66855.0,66854.0,0.42143969]
[1718303275689,0.006,66855.0,66854.0,0.85171862]
[1718303275908,0.00571262,66855.0,66854.0,0.969982]
[1718303276127,0.00571262,66855.0,66854.0,1.28015938]
[1718303277237,0.00571262,66855.0,66854.0,1.269496]
[1718303277448,0.00571262,66855.0,66854.0,0.970337]
[1718303277661,0.00571262,66855.0,66854.0,0.980337]
[1718303277924,0.00033662,66860.0,66859.0,0.14985019]
[1718303278134,0.00033662,66860.0,66859.0,0.24985019]
[1718303278346,0.00033662,66860.0,66859.0,0.31189257]
[1718303278583,0.00033662,66860.0,66859.0,0.31469884]
[1718303279095,0.00033662,66860.0,66859.0,0.32469884]
[1718303279303,0.00133662,66860.0,66859.0,0.33169884]
[1718303280302,0.001,66860.0,66859.0,0.63083484]
[1718303280520,0.001,66860.0,66859.0,0.77515477]
[1718303280720,0.001,66860.0,66859.0,0.97895477]
[1718303281341,0.001,66860.0,66859.0,1.17895477]
[1718303281542,0.001,66860.0,66859.0,0.87981877]
[1718303281752,0.001,66860.0,66859.0,1.18997502]
[1718303282934,0.001,66860.0,66859.0,1.48911102]
[1718303283165,0.001,66860.0,66859.0,1.18861815]
[1718303283504,0.001,66860.0,66859.0,1.18997485]
[1718303284117,0.001,66860.0,66859.0,1.19963823]
[1718303284332,0.001,66860.0,66859.0,1.18997485]
[1718303284670,0.001,66860.0,66859.0,1.53372894]
[1718303285975,0.00071781,66860.0,66859.0,1.53372894]
[1718303287974,0.00071781,66860.0,66859.0,1.54339232]
[1718303288204,0.00071781,66860.0,66859.0,1.84252832]
[1718303288412,0.00071781,66860.0,66859.0,1.54340212]
[1718303288613,0.00071781,66860.0,66859.0,1.53373874]
[1718303290133,0.00071781,66860.0,66859.0,1.53374081]
[1718303291607,0.00071781,66860.0,66859.0,1.83287681]
[1718303292043,0.00071781,66860.0,66859.0,2.09703559]
[1718303292259,0.00071781,66860.0,66859.0,2.68740179]
[1718303292472,0.00071781,66860.0,66859.0,2.70972209]
[1718303292921,0.00071781,66860.0,66859.0,2.59812059]
[1718303293193,0.00071781,66860.0,66859.0,2.58812059]
[1718303293403,0.112,66875.0,66874.0,0.149534]
[1718303293646,0.112,66875.0,66874.0,0.14981619]
[1718303293868,0.18313662,66875.0,66874.0,0.15228367]
[1718303294077,0.18313662,66875.0,66874.0,0.00274967]
[1718303294315,0.27573662,66875.0,66874.0,0.00274967]
[1718303294524,0.27573662,66875.0,66872.0,0.149539]
[1718303294525,0.00033662,66873.0,66872.0,0.149539]
[1718303295170,0.00033662,66873.0,66872.0,0.14982119]
[1718303295171,0.07113662,66873.0,66872.0,0.14982119]
[1718303295601,0.27198262,66873.0,66872.0,0.149539]
[1718303295991,0.27498262,66873.0,66872.0,0.149539]
[1718303296647,0.27498262,66873.0,66872.0,0.15282119]
[1718303297092,0.115546,66873.0,66872.0,0.15282119]
[1718303301025,0.115546,66873.0,66872.0,0.15553628]
[1718303302355,0.11588262,66873.0,66872.0,0.15553628]
[1718303305210,0.26541962,66873.0,66872.0,0.00571509]
[1718303305417,0.43441962,66873.0,66872.0,0.00571509]
[1718303305630,0.43441962,66873.0,66872.0,0.003]
[1718303308510,0.73349362,66873.0,66872.0,0.003]
[1718303308709,0.83349362,66873.0,66872.0,0.003]
[1718303309282,0.20273662,66860.0,66859.0,0.00086]
[1718303309492,0.28353662,66860.0,66859.0,0.00086]
[1718303309690,0.43310262,66860.0,66859.0,0.00359886]
[1718303309900,0.43310262,66860.0,66859.0,0.00086]
[1718303310126,0.43310262,66860.0,66859.0,0.00359886]
[1718303310328,0.43310262,66860.0,66859.0,0.00086]
[1718303310557,0.43310262,66860.0,66859.0,0.00886]
[1718303310753,0.28353662,66860.0,66859.0,0.00886]
[1718303311291,0.43310262,66860.0,66859.0,0.00886]
[1718303312436,0.43310262,66860.0,66859.0,0.00286]
[1718303312680,0.43310262,66860.0,66859.0,0.00086]
[1718303313858,0.43310262,66860.0,66859.0,0.00586]
[1718303314720,0.36230262,66860.0,66859.0,0.00586]
[1718303314931,0.20273662,66860.0,66859.0,0.155428]
[1718303315300,0.18123662,66860.0,66859.0,0.15823172]
[1718303318006,0.18123662,66860.0,66859.0,0.155428]
[1718303318394,0.18123662,66860.0,66859.0,0.15822825]
[1718303319128,0.00033662,66863.0,66862.0,0.14984319]
[1718303319352,0.07113662,66863.0,66862.0,0.14984319]
[1718303319758,0.07113662,66863.0,66862.0,0.15236125]
[1718303320157,0.07113662,66863.0,66862.0,0.15264344]
[1718303320376,0.07113662,66863.0,66862.0,0.15236125]
[1718303320730,0.07513662,66863.0,66862.0,0.15236125]
[1718303321591,0.07513662,66863.0,66862.0,0.15436125]
[1718303322007,0.07513662,66863.0,66862.0,0.15464344]
[1718303325746,0.00433662,66863.0,66862.0,0.15464344]
[1718303326153,0.07513662,66863.0,66862.0,0.15464344]
[1718303329082,0.0748,66863.0,66862.0,0.15464344]
[1718303329310,0.0748,66863.0,66862.0,0.27832344]
[1718303329521,0.07513662,66863.0,66862.0,0.27832344]
[1718303332506,0.07513662,66863.0,66862.0,0.15464344]
[1718303332700,0.07513662,66863.0,66862.0,0.27866903]
[1718303334419,0.18983662,66863.0,66862.0,0.27866903]
[1718303335986,0.18983662,66863.0,66862.0,0.27838684]
[1718303337854,0.18965661,66863.0,66862.0,0.27838684]
[1718303338682,0.18965661,66863.0,66862.0,0.27866903]
[1718303340525,0.18965661,66863.0,66862.0,0.12910803]
[1718303340733,0.18965661,66863.0,66862.0,0.12882584]
[1718303342699,0.07495661,66863.0,66862.0,0.27866903]
[1718303343604,0.00381999,66863.0,66862.0,0.57779203]
[1718303343838,0.00381999,66863.0,66862.0,1.0795559]
[1718303344757,0.00381999,66863.0,66862.0,1.12424343]
[1718303345353,0.00415661,66863.0,66862.0,0.73350399]
[1718303346012,0.00415661,66863.0,66862.0,0.68881646]
[1718303347342,0.00415661,66863.0,66862.0,0.73350399]
[1718303347560,0.07495661,66863.0,66862.0,0.73350399]
[1718303348011,0.15915661,66863.0,66862.0,0.5836608]
[1718303348246,0.15915661,66863.0,66862.0,0.53898272]
[1718303348678,0.08835661,66863.0,66862.0,0.68882591]
[1718303348927,0.15915661,66863.0,66862.0,0.53931017]
[1718303349357,0.15915661,66863.0,66862.0,0.5839977]
[1718303350078,0.15915661,66863.0,66862.0,0.53931017]
[1718303350378,0.08835661,66863.0,66862.0,0.73360128]
[1718303350602,0.15915661,66863.0,66862.0,0.73360685]
[1718303351004,0.15915661,66863.0,66862.0,0.68887645]
[1718303351430,0.15915661,66863.0,66862.0,0.53903326]
[1718303351632,0.15915661,66863.0,66862.0,0.53902835]
[1718303351845,0.42641561,66863.0,66862.0,0.4837694]
[1718303352050,0.42641561,66863.0,66862.0,0.43902835]
[1718303352271,0.26685661,66863.0,66862.0,0.00480025]
[1718303352408,0.19605661,66863.0,66862.0,0.12889266]
[1718303352609,0.26685661,66863.0,66862.0,0.12889266]
[1718303353046,0.26685661,66863.0,66862.0,0.43906111]
[1718303353451,0.26685661,66863.0,66862.0,0.48380216]
[1718303353626,0.26685661,66863.0,66862.0,0.48408435]
[1718303353627,0.07461999,66863.0,66862.0,0.48408435]
[1718303353830,0.07461999,66863.0,66862.0,1.02642423]
[1718303353831,0.00381999,66863.0,66862.0,1.02642423]
[1718303354048,0.00381999,66863.0,66862.0,1.32554723]
[1718303354406,0.00381999,66863.0,66862.0,1.33521061]
[1718303354617,0.00381999,66863.0,66862.0,1.32554723]
[1718303354819,0.00381999,66863.0,66862.0,1.02642423]
[1718303355026,0.00033662,66866.0,66865.0,0.14983719]
[1718303355324,0.00033662,66866.0,66865.0,0.83100114]
[1718303355654,0.00033662,66866.0,66865.0,0.9204633]
[1718303356867,0.00133662,66866.0,66865.0,0.9284633]
[1718303357066,0.001,66866.0,66865.0,0.9384633]
[1718303357273,0.00133662,66866.0,66865.0,0.9384633]
[1718303357475,0.00133662,66866.0,66865.0,0.93841623]
[1718303359853,0.00133662,66866.0,66865.0,0.64425911]
[1718303360058,0.19783662,66866.0,66865.0,0.55479695]
[1718303360256,0.19878262,66866.0,66865.0,0.61684644]
[1718303360465,0.19878262,66866.0,66865.0,0.66160995]
[1718303362206,0.19878262,66866.0,66865.0,0.66162453]
[1718303362576,0.19878262,66866.0,66865.0,0.661627]
[1718303362778,0.19878262,66866.0,66865.0,0.65904384]
[1718303362988,0.19878262,66866.0,66865.0,0.61426662]
[1718303364587,0.19878262,66866.0,66865.0,0.61426618]
[1718303365913,0.19878262,66866.0,66865.0,0.68142743]
[1718303367887,0.19878262,66866.0,66865.0,0.61426618]
[1718303368094,0.19878262,66866.0,66865.0,0.68142743]
[1718303368683,0.19878262,66866.0,66865.0,0.61426618]
[1718303369591,0.19878262,66866.0,66865.0,0.68142743]
[1718303370229,0.19878262,66866.0,66865.0,0.61426618]
[1718303370648,0.19878262,66866.0,66865.0,0.68142743]
[1718303372355,0.19878262,66866.0,66865.0,0.61426618]
[1718303372497,0.19878262,66866.0,66865.0,0.6142682]
[1718303372897,0.19878262,66866.0,66865.0,0.68142945]
[1718303373102,0.19878262,66866.0,66865.0,0.68171164]
[1718303373308,0.18408262,66866.0,66865.0,0.68171164]
[1718303374382,0.18408262,66866.0,66865.0,0.70409872]
[1718303374592,0.18408262,66866.0,66865.0,0.61455039]
[1718303374990,0.18408262,66866.0,66865.0,0.72648581]
[1718303375191,0.07308262,66866.0,66865.0,0.32815098]
[1718303375415,0.42403462,66866.0,66865.0,0.018]
[1718303376238,0.42403462,66866.0,66865.0,0.008]
[1718303376674,0.42403462,66866.0,66865.0,0.01]
[1718303376913,0.42303462,66866.0,66865.0,0.002]
[1718303377330,0.42603462,66866.0,66865.0,0.002]
[1718303379238,0.72513962,66866.0,66865.0,0.002]
[1718303380075,0.42603462,66866.0,66865.0,0.002]
[1718303383390,1.56766955,66866.0,66865.0,0.002]
[1718303385517,1.78581127,66866.0,66865.0,0.002]
[1718303385710,1.78581127,66866.0,66862.0,0.00086]
[1718303385711,1.05773362,66863.0,66862.0,0.00086]
[1718303385918,1.27285355,66863.0,66862.0,0.00086]
[1718303387608,1.28685355,66863.0,66862.0,0.00186]
[1718303388031,1.58597255,66863.0,66862.0,0.00186]
[1718303388515,1.58697255,66863.0,66862.0,0.00286]
[1718303401333,0.90816662,66860.0,66859.0,0.00086]
[1718303401535,0.57211562,66848.0,66847.0,0.00086]
[1718303401751,0.72741562,66848.0,66847.0,0.00086]
[1718303403128,0.65661562,66848.0,66847.0,0.00086]
[1718303403387,0.42822962,66848.0,66847.0,0.00086]
[1718303403551,0.27292962,66848.0,66847.0,0.00086]
[1718303403735,0.34372962,66848.0,66847.0,0.00186]
[1718303403938,0.23072962,66848.0,66847.0,0.00186]
[1718303404408,0.23472962,66848.0,66847.0,0.00186]
[1718303405269,0.22472962,66848.0,66847.0,0.00186]
[1718303405499,0.23472962,66848.0,66847.0,0.00186]
[1718303405749,0.07513662,66848.0,66847.0,0.00186]